bitfinex-derivatives/quotes_ETHF0:USTF0_20210705
["timestamp","ask_amount","ask_price","bid_price","bid_amount"]
[1625447880999,0.35,2317.4,2317.3,20.166521]
[1625447882752,0.35,2317.4,2317.3,66.883721]
[1625447883253,0.35,2317.4,2317.3,20.166521]
[1625447883909,0.35,2317.4,2317.3,58.082521]
[1625447885311,0.35,2317.4,2317.3,20.166521]
[1625447885968,0.35,2317.4,2317.3,61.249821]
[1625447887130,0.35,2317.4,2317.3,20.166521]
[1625447887581,0.35,2317.4,2317.3,67.884921]
[1625447887681,0.35,2317.4,2317.3,20.166521]
[1625447888836,0.35,2317.4,2317.3,68.468921]
[1625447889335,0.35,2317.4,2317.3,20.166521]
[1625447889989,2.6651,2317.4,2317.3,20.166521]
[1625447892726,2.6651,2317.4,2317.3,15.755981]
[1625447892807,2.6651,2317.4,2316.5,2.49445268]
[1625447893208,2.6651,2317.4,2316.3,2.49648788]
[1625447893716,2.6651,2317.4,2316.1,2.49809797]
[1625447894061,50.4553,2316.6,2316.1,2.49809797]
[1625447894161,54.0409,2316.6,2316.1,2.49809797]
[1625447894259,54.0409,2316.6,2315.9,2.49798802]
[1625447894463,54.0409,2316.6,2316.5,4.41054]
[1625447895064,3.5856,2316.6,2316.5,4.41054]
[1625447898584,2.20527,2316.8,2316.5,4.41054]
[1625447899887,2.20527,2316.8,2316.6,15.800995]
[1625447910493,2.20527,2316.8,2316.5,4.41054]
[1625447910586,4.66997,2316.8,2316.5,4.41054]
[1625447918460,4.66997,2316.8,2316.6,15.752693]
[1625447918561,2.20527,2316.8,2316.6,15.752693]
[1625447918763,2.20527,2316.8,2316.6,18.082393]
[1625447919163,2.20527,2317.1,2316.7,38.5142]
[1625447919472,2.20527,2317.1,2316.8,15.763347]
[1625447920567,2.20527,2317.1,2317.0,4.41054]
[1625447920869,2.20527,2317.1,2317.0,19.984411]
[1625447922024,0.35,2317.4,2317.0,19.984411]
[1625447922622,0.35,2317.4,2317.3,2.20527]
[1625447922722,0.35,2317.4,2317.3,5.52587]
[1625447922920,0.35,2317.4,2317.3,21.239809]
[1625447923523,0.35,2317.4,2317.3,5.52587]
[1625447923870,49.0883,2317.4,2317.3,5.52587]
[1625447923972,49.0883,2317.4,2317.3,2.20527]
[1625447924171,0.35,2317.4,2317.3,2.20527]
[1625447932704,0.35,2317.4,2317.3,50.54007]
[1625447933011,0.35,2317.4,2317.3,2.20527]
[1625447933563,48.1214,2317.4,2317.3,2.20527]
[1625447933968,0.35,2317.4,2317.3,2.20527]
[1625447938425,0.35,2317.4,2317.3,17.751384]
[1625447939128,0.35,2317.4,2317.3,70.824884]
[1625447939528,0.35,2317.4,2317.3,17.751384]
[1625447942894,0.35,2317.4,2317.3,2.20527]
[1625447942994,4.068,2317.4,2317.3,2.20527]
[1625447944302,4.068,2317.4,2317.3,48.66277]
[1625447945865,4.068,2317.4,2317.3,2.20527]
[1625447946414,4.068,2317.4,2317.3,49.72417]
[1625447946514,4.068,2317.4,2317.3,2.20527]
[1625447949270,4.068,2317.4,2317.0,2.20527]
[1625447950872,2.20527,2317.1,2317.0,2.20527]
[1625447952723,2.20527,2317.1,2317.0,45.06697]
[1625447953425,0.35,2317.4,2317.0,45.06697]
[1625447953528,0.35,2317.4,2317.0,47.57257]
[1625447953726,0.35,2317.4,2317.0,63.260795]
[1625447953877,0.35,2317.4,2317.0,20.399095]
[1625447954782,0.35,2317.4,2317.0,22.87909044]
[1625447954882,0.35,2317.4,2317.3,2.20527]
[1625447955181,0.35,2317.4,2317.3,17.875839]
[1625447958509,0.35,2317.4,2317.3,2.20527]
[1625447964876,2.55527,2317.4,2317.3,2.20527]
[1625447965879,0.35,2317.4,2317.3,2.20527]
[1625447969848,2.7535,2317.4,2317.3,2.20527]
[1625447972506,3.6064,2317.4,2317.3,2.20527]
[1625447972631,1.2029,2317.4,2317.3,2.20527]
[1625447972710,0.35,2317.4,2317.3,5.52657]
[1625447973112,0.35,2317.4,2317.3,45.79807]
[1625447973313,0.35,2317.4,2317.3,61.518679]
[1625447974117,0.0001,2317.4,2317.3,61.518679]
[1625447977173,0.0001,2317.4,2317.3,21.247179]
[1625447977982,2.5044,2317.4,2317.3,17.925879]
[1625447979077,2.5044,2317.4,2317.3,63.219079]
[1625447979928,2.5044,2317.4,2317.3,17.925879]
[1625447980732,0.0001,2317.4,2317.3,17.925879]
[1625447980935,0.0001,2317.4,2317.3,61.579879]
[1625447982639,0.0001,2317.4,2317.3,17.925879]
[1625447988907,0.0001,2317.4,2317.3,2.20527]
[1625447990915,2.20537,2317.4,2317.3,2.20527]
[1625447993769,51.14547,2317.4,2317.3,2.20527]
[1625447995671,2.20537,2317.4,2317.3,2.20527]
[1625447996923,41.96207,2317.4,2317.3,2.20527]
[1625448003863,41.96207,2317.4,2316.6,1.7398704]
[1625448004364,46.96207,2317.4,2316.6,1.7398704]
[1625448004579,52.5499,2316.7,2316.2,3.23118788]
[1625448004678,56.3747,2316.7,2316.2,3.23118788]
[1625448004878,55.5171,2316.7,2316.2,3.23118788]
[1625448005088,4.41054,2316.3,2316.2,3.23118788]
[1625448005187,5.27744,2316.3,2316.2,3.23118788]
[1625448005383,5.27744,2316.3,2315.9,2.49032968]
[1625448005783,4.41054,2316.3,2315.9,2.49032968]
[1625448005985,4.41054,2316.3,2315.7,2.20527]
[1625448007038,2.20527,2315.8,2315.7,2.20527]
[1625448007144,4.49917,2315.8,2315.7,2.20527]
[1625448008647,4.49917,2315.8,2315.5,2.20527]
[1625448009044,2.20527,2315.6,2315.2,2.20527]
[1625448009146,43.4696,2315.3,2315.2,2.20527]
[1625448009244,43.4696,2315.3,2315.0,5.4459889]
[1625448009245,46.3438,2315.3,2315.0,3.2407189]
[1625448009345,46.3438,2315.3,2314.3,6.23215173]
[1625448009346,46.3438,2315.3,2314.6,3.2397817]
[1625448010254,46.3438,2315.3,2314.5,3.24074096]
[1625448010344,2.8742,2315.3,2314.5,3.24074096]
[1625448010797,2.8742,2315.3,2314.3,3.24189988]
[1625448010896,52.1008,2315.3,2314.6,15.661037]
[1625448011098,52.1008,2315.3,2315.2,2.20527]
[1625448011801,2.8742,2315.3,2315.2,2.20527]
[1625448013051,5.07947,2315.3,2314.9,2.20527]
[1625448013551,5.07947,2315.3,2314.0,4.23516371]
[1625448013651,5.07947,2315.3,2314.0,3.23516371]
[1625448014153,5.07947,2315.3,2314.1,15.69776]
[1625448014803,5.07947,2315.3,2314.0,15.618246]
[1625448015104,2.20527,2314.7,2314.5,2.20527]
[1625448015204,5.36717,2314.7,2314.5,2.20527]
[1625448015956,3.1619,2314.7,2314.5,2.20527]
[1625448017062,2.20527,2314.6,2314.5,2.20527]
[1625448018064,48.37547,2314.6,2314.5,2.20527]
[1625448018916,2.20527,2314.6,2314.5,2.20527]
[1625448022144,51.95137,2314.6,2314.5,2.20527]
[1625448023995,2.20527,2314.6,2314.5,2.20527]
[1625448024547,54.99767,2314.6,2314.5,2.20527]
[1625448025048,2.20527,2314.6,2314.5,2.20527]
[1625448028672,1.0,2315.4,2314.5,2.20527]
[1625448028774,52.5499,2316.7,2314.5,2.20527]
[1625448028869,15.1228,2316.1,2314.5,2.20527]
[1625448028970,15.1228,2316.1,2315.0,41.1814]
[1625448029069,14.1228,2316.1,2314.5,2.20527]
[1625448029171,2.20527,2315.8,2314.1,2.8727]
[1625448029275,2.20527,2315.8,2314.6,15.682131]
[1625448029579,41.7987,2315.1,2312.9,5.93574265]
[1625448029672,44.7929,2315.1,2312.9,3.22564265]
[1625448029974,44.7929,2315.1,2312.7,3.2262056]
[1625448030073,45.7929,2315.1,2312.7,3.2262056]
[1625448030221,45.7929,2315.1,2313.6,15.763287]
[1625448030331,44.7929,2315.1,2313.6,15.763287]
[1625448031180,2.20527,2314.4,2314.3,2.20527]
[1625448031281,5.92377,2314.4,2314.3,2.20527]
[1625448031382,3.7185,2314.4,2314.3,2.20527]
[1625448032039,56.4227,2314.4,2314.3,2.20527]
[1625448033238,60.83324,2314.4,2314.3,2.20527]
[1625448034188,3.7185,2314.4,2314.3,2.20527]
[1625448035022,3.7185,2314.4,2314.3,1.35597]
[1625448035220,8.12904,2314.4,2314.3,1.35597]
[1625448035571,45.81704,2314.4,2314.3,1.35597]
[1625448038776,8.12904,2314.4,2314.3,1.35597]
[1625448039386,61.16194,2314.4,2314.3,1.35597]
[1625448048153,8.12904,2314.4,2314.3,1.35597]
[1625448048755,46.35494,2314.4,2314.3,1.35597]
[1625448051421,8.12904,2314.4,2314.3,1.35597]
[1625448052174,52.56734,2314.4,2314.3,1.35597]
[1625448054577,52.56734,2314.4,2313.0,1.0]
[1625448054679,52.56734,2314.4,2312.6,15.0906]
[1625448054781,1.0,2314.3,2312.6,14.0906]
[1625448055284,1.0,2314.3,2312.7,15.699633]
[1625448055382,43.2416,2313.2,2312.7,15.699633]
[1625448055483,46.0464,2313.2,2313.1,2.20527]
[1625448055783,46.0464,2313.2,2313.1,17.930827]
[1625448056638,46.0464,2313.2,2313.1,2.20527]
[1625448056837,2.8048,2313.2,2313.1,2.20527]
[1625448058199,4.41054,2313.3,2313.1,2.20527]
[1625448058300,4.41054,2313.3,2313.2,51.5468]
[1625448058500,4.41054,2313.3,2313.1,2.20527]
[1625448058603,4.41054,2313.3,2313.2,15.731808]
[1625448059652,43.02144,2313.3,2313.2,15.731808]
[1625448059853,4.41054,2313.3,2313.2,15.731808]
[1625448064569,7.22574,2313.3,2313.2,15.731808]
[1625448067280,4.41054,2313.3,2313.2,15.731808]
[1625448067578,15.0534,2314.3,2313.2,15.731808]
[1625448067680,14.0534,2314.3,2313.2,15.731808]
[1625448069490,2.20527,2313.3,2313.2,15.731808]
[1625448073265,2.20527,2313.3,2313.1,2.20527]
[1625448079524,53.8746,2313.2,2313.1,2.20527]
[1625448079828,2.20527,2313.3,2313.1,2.20527]
[1625448080380,45.979,2313.2,2313.1,2.20527]
[1625448080787,2.20527,2313.3,2313.1,2.20527]
[1625448088396,36.3177,2313.2,2313.1,2.20527]
[1625448089010,2.20527,2313.3,2313.1,2.20527]
[1625448090413,50.8858,2313.2,2313.1,2.20527]
[1625448090613,2.20527,2313.3,2313.1,2.20527]
[1625448092818,1.0,2314.2,2313.1,2.20527]
[1625448092919,14.0534,2314.3,2313.1,5.37367]
[1625448093218,14.0534,2314.3,2313.2,15.701206]
[1625448093668,4.41054,2313.3,2313.2,15.701206]
[1625448095426,5.11054,2313.3,2313.2,13.951206]
[1625448097333,5.11054,2313.3,2313.1,2.20527]
[1625448102444,0.7,2313.3,2313.1,2.20527]
[1625448102943,0.7,2313.3,2313.2,15.786977]
[1625448103798,2.90527,2313.3,2313.2,15.786977]
[1625448104808,2.90527,2313.3,2313.1,2.20527]
[1625448104908,6.02557,2313.3,2313.1,2.20527]
[1625448110522,2.90527,2313.3,2313.1,4.53647]
[1625448110932,2.90527,2313.3,2313.2,15.564706]
[1625448111549,2.90527,2313.3,2313.2,16.82602663]
[1625448114397,2.90527,2313.3,2313.2,15.564706]
[1625448115347,0.7,2313.3,2313.2,15.564706]
[1625448115698,0.7,2313.3,2313.1,3.46660997]
[1625448115799,2.20527,2313.2,2313.1,3.46660997]
[1625448116098,2.20527,2313.2,2313.1,1.26133997]
[1625448117060,2.20527,2313.2,2313.0,1.26115929]
[1625448118262,2.20527,2313.2,2313.1,1.26137143]
[1625448118561,2.20527,2313.2,2313.0,1.26154192]
[1625448119563,2.20527,2313.2,2313.1,1.26235535]
[1625448120267,49.35097,2313.2,2313.1,1.26235535]
[1625448120816,2.20527,2313.2,2312.9,3.46896002]
[1625448121468,2.20527,2313.2,2312.9,2.20527]
[1625448121868,2.20527,2313.1,2312.9,2.20527]
[1625448121969,2.20527,2313.1,2312.9,3.46916263]
[1625448121970,37.3811,2313.0,2312.9,3.46916263]
[1625448122771,2.20527,2313.1,2312.9,3.46916263]
[1625448123723,2.20527,2313.1,2313.0,1.26373089]
[1625448124023,2.20527,2313.1,2312.9,3.46924277]
[1625448125134,2.20527,2313.1,2312.9,2.20527]
[1625448126536,2.20527,2313.1,2312.8,1.26494517]
[1625448127539,2.20527,2313.1,2312.5,2.53054556]
[1625448127540,2.20527,2313.1,2312.7,1.26517989]
[1625448127938,2.20527,2312.8,2312.7,1.26517989]
[1625448129094,2.20527,2312.8,2312.6,1.26587457]
[1625448129545,2.20527,2312.8,2312.4,3.47131389]
[1625448129944,2.20527,2312.5,2312.4,3.47131389]
[1625448130747,2.20527,2312.5,2312.4,2.20527]
[1625448133806,2.20527,2312.5,2312.2,3.47096759]
[1625448133907,4.41054,2312.5,2312.2,3.47096759]
[1625448134860,4.41054,2312.5,2312.2,2.20527]
[1625448134958,8.09154,2312.5,2312.2,2.20527]
[1625448136370,8.09154,2312.5,2312.2,3.47139734]
[1625448136472,49.51424,2312.5,2312.2,3.47139734]
[1625448137024,49.51424,2312.5,2312.2,2.20527]
[1625448137575,8.09154,2312.5,2312.2,2.20527]
[1625448143646,49.1592,2312.3,2312.2,2.20527]
[1625448146352,8.09154,2312.5,2312.2,2.20527]
[1625448147050,51.5045,2312.4,2312.2,2.20527]
[1625448148203,8.09154,2312.5,2312.2,2.20527]
[1625448149755,8.09154,2312.5,2312.1,0.17613636]
[1625448150056,2.20527,2312.2,2312.1,0.17613636]
[1625448154428,2.20527,2312.2,2312.1,3.636e-05]
[1625448154529,7.20527,2312.2,2311.4,0.17975495]
[1625448154847,2.20527,2312.2,2311.4,0.17975495]
[1625448155049,7.20527,2312.2,2311.4,0.17975495]
[1625448155147,40.1411,2311.5,2311.4,0.17975495]
[1625448155248,43.8064,2311.5,2311.4,0.17975495]
[1625448156099,8.07584,2311.5,2311.4,0.17975495]
[1625448160406,13.07584,2311.5,2311.2,1.60802495]
[1625448160507,13.07584,2311.5,2311.2,0.74802495]
[1625448160608,13.07584,2311.5,2310.6,0.18337354]
[1625448160908,13.07584,2311.5,2310.6,0.12037354]
[1625448162061,4.41054,2310.7,2310.6,0.12037354]
[1625448162161,6.69274,2310.7,2310.6,0.12037354]
[1625448162363,6.69274,2310.7,2309.9,0.18699213]
[1625448162462,11.69274,2310.7,2309.9,0.18699213]
[1625448162661,11.69274,2310.7,2309.6,1.26968283]
[1625448162962,6.69274,2310.7,2309.6,1.26968283]
[1625448163064,11.69274,2310.7,2309.2,0.19061072]
[1625448163162,12.56594,2310.7,2309.2,0.19061072]
[1625448163263,7.56594,2310.7,2309.2,0.19061072]
[1625448163362,52.2743,2309.4,2309.2,0.19061072]
[1625448163465,55.5666,2309.4,2309.2,0.19061072]
[1625448164163,4.41054,2309.3,2309.2,0.19061072]
[1625448165166,4.41054,2309.3,2309.2,15.93060272]
[1625448167684,4.41054,2309.3,2309.2,0.19061072]
[1625448167983,4.41054,2309.3,2309.2,15.84845272]
[1625448168788,7.31044,2309.3,2309.2,15.84845272]
[1625448169086,7.31044,2309.3,2309.2,0.19061072]
[1625448174271,4.41054,2309.3,2309.2,0.19061072]
[1625448174661,1.0,2310.5,2309.2,0.19061072]
[1625448174768,14.8406,2310.6,2309.2,0.19061072]
[1625448175058,14.8406,2310.6,2309.3,15.719673]
[1625448176107,2.20527,2309.5,2309.3,15.719673]
[1625448177011,5.87607,2309.5,2309.3,15.719673]
[1625448178164,5.87607,2309.5,2309.4,2.20527]
[1625448178263,5.87607,2309.5,2309.3,15.719673]
[1625448178465,5.87607,2309.5,2309.2,0.19061072]
[1625448179064,5.87607,2309.5,2309.3,15.58891]
[1625448181131,1.78947,2309.5,2309.3,15.58891]
[1625448181231,2.20527,2309.8,2309.3,15.58891]
[1625448182133,4.41054,2309.8,2309.3,15.58891]
[1625448183536,56.79444,2309.8,2309.3,15.58891]
[1625448183688,4.41054,2309.8,2309.3,15.58891]
[1625448184138,2.20527,2309.5,2309.3,15.58891]
[1625448188159,2.20527,2309.4,2309.3,15.58891]
[1625448189063,2.20527,2309.4,2309.2,0.19061072]
[1625448199852,45.5021,2308.9,2308.1,2.20527]
[1625448199951,48.2862,2308.9,2308.1,2.20527]
[1625448200257,4.41054,2308.5,2308.1,2.20527]
[1625448200459,4.41054,2308.5,2307.8,2.20527]
[1625448200557,4.41054,2308.5,2308.4,2.93e-05]
[1625448209506,6.73254,2308.5,2308.4,2.93e-05]
[1625448211005,7.59084,2308.5,2308.4,2.93e-05]
[1625448211256,6.73254,2308.5,2308.4,2.93e-05]
[1625448212946,6.73254,2308.5,2306.9,16.03386648]
[1625448212947,11.73254,2308.5,2307.7,7.719e-05]
[1625448213133,11.73254,2308.5,2306.9,15.03386648]
[1625448213327,11.73254,2308.5,2306.9,0.20146648]
[1625448214117,11.73254,2308.5,2306.9,6.648e-05]
[1625448214217,14.0864,2308.4,2306.9,6.648e-05]
[1625448214317,5.0,2308.3,2306.9,6.648e-05]
[1625448214419,4.41054,2307.0,2306.9,6.648e-05]
[1625448214617,7.91544,2307.0,2306.9,6.648e-05]
[1625448215519,9.01544,2307.0,2306.9,6.648e-05]
[1625448215674,14.01544,2307.0,2306.9,6.648e-05]
[1625448215991,14.01544,2307.0,2306.2,0.00015155]
[1625448216189,14.01544,2307.0,2305.5,0.20870366]
[1625448216283,46.5988,2304.9,2304.3,1.0]
[1625448216376,4.41054,2304.8,2304.4,2.20527]
[1625448216491,4.41054,2304.8,2304.2,4.759]
[1625448216578,4.41054,2304.8,2304.3,0.8802]
[1625448216686,4.41054,2304.8,2304.2,4.759]
[1625448217177,4.41054,2304.8,2304.7,2.224e-05]
[1625448218424,3.75814,2304.8,2304.7,17.84402224]
[1625448218524,2.9193,2305.6,2304.7,17.84402224]
[1625448218724,0.0001,2305.6,2304.7,17.84402224]
[1625448218826,1.0,2306.6,2304.7,17.84402224]
[1625448218926,2.322,2308.5,2305.2,53.7383]
[1625448219025,1.1,2308.0,2305.2,57.2647]
[1625448219125,16.1002,2308.0,2305.2,3.5264]
[1625448219327,16.1002,2308.0,2305.3,15.683533]
[1625448219528,5.0,2307.9,2305.3,15.683533]
[1625448219730,6.0,2307.9,2305.3,15.683533]
[1625448219927,9.3614,2307.9,2305.3,15.683533]
[1625448220229,9.3614,2307.9,2305.2,3.5264]
[1625448220441,2.20527,2305.3,2305.2,3.5264]
[1625448220530,2.20527,2305.3,2305.0,2.20527]
[1625448221654,2.20527,2305.3,2305.2,38.7637]
[1625448221935,2.20527,2305.3,2305.2,15.760148]
[1625448222386,1.0,2306.5,2305.2,17.965418]
[1625448222486,1.0,2307.1,2305.2,17.965418]
[1625448222585,2.7534,2307.2,2305.2,17.965418]
[1625448223036,2.7534,2307.2,2305.7,38.234]
[1625448223136,1.1,2307.9,2305.7,40.7642]
[1625448223390,2.99471882,2309.5,2305.8,15.81951]
[1625448223485,1.24849203,2309.5,2305.8,15.81951]
[1625448223585,1.0,2309.4,2305.8,15.81951]
[1625448223684,47.2609,2308.6,2305.8,15.81951]
[1625448223787,1.0,2308.5,2305.8,15.81951]
[1625448224037,1.1,2308.4,2305.8,15.81951]
[1625448224138,2.1,2308.4,2305.8,15.81951]
[1625448224236,5.0,2308.3,2305.8,15.81951]
[1625448224337,1.1,2308.2,2305.8,15.81951]
[1625448224437,2.20527,2306.4,2306.3,2.20527]
[1625448225943,2.20527,2306.4,2306.3,17.839285]
[1625448226445,4.41054,2306.4,2306.3,17.839285]
[1625448227267,4.41054,2306.4,2306.1,2.20527]
[1625448227366,6.82484,2306.4,2306.1,2.20527]
[1625448229112,6.82484,2306.4,2305.8,2.20527]
[1625448229712,6.82484,2306.4,2305.9,15.797635]
[1625448230013,6.82484,2306.4,2305.8,2.20527]
[1625448230515,4.41054,2305.9,2305.8,2.20527]
[1625448231831,4.41054,2305.9,2304.7,2.224e-05]
[1625448232160,7.28824,2305.9,2304.7,2.224e-05]
[1625448232443,12.28824,2305.9,2304.8,15.879816]
[1625448232634,12.28824,2305.9,2304.8,1.6e-05]
[1625448232837,12.28824,2305.9,2304.7,2.224e-05]
[1625448232935,12.28824,2305.9,2303.7,13.6887]
[1625448233230,39.5474,2304.7,2304.5,2.20527]
[1625448233332,43.0418,2304.7,2304.5,2.20527]
[1625448234484,3.4944,2304.7,2304.5,2.20527]
[1625448234585,3.4944,2304.7,2303.4,2.20527]
[1625448236088,3.4944,2304.7,2304.0,0.12264083]
[1625448236488,4.41054,2304.1,2304.0,0.12264083]
[1625448237090,4.41054,2304.1,2304.0,0.01314083]
[1625448238298,4.41054,2304.1,2301.9,15.1035]
[1625448238405,4.41054,2304.1,2301.9,14.1035]
[1625448238994,7.49344,2304.1,2302.6,15.706505]
[1625448239094,2.20527,2303.0,2302.8,2.20527]
[1625448239195,7e-05,2303.0,2302.8,2.20527]
[1625448239394,7e-05,2303.0,2302.9,15.746871]
[1625448239800,1.0,2304.6,2302.9,15.746871]
[1625448239896,14.8489,2305.1,2302.9,19.480971]
[1625448240498,2.20527,2304.6,2304.5,2.20527]
[1625448240896,1.0,2306.2,2304.5,2.20527]
[1625448240994,13.9002,2306.4,2304.5,5.49037]
[1625448241379,5.0,2308.1,2304.5,5.49037]
[1625448241445,1.1,2307.1,2304.5,5.49037]
[1625448241647,1.1,2307.1,2304.6,15.844244]
[1625448242249,6.0,2307.4,2304.6,15.844244]
[1625448242354,5.0,2307.4,2304.6,15.844244]
[1625448242555,2.20527,2306.3,2306.2,2.20527]
[1625448242653,2.20527,2306.3,2306.2,4.69297]
[1625448244516,4.41054,2306.3,2306.2,4.69297]
[1625448244817,4.41054,2306.3,2306.2,20.3962]
[1625448245876,1.1,2307.6,2306.2,20.3962]
[1625448246076,1.1,2307.6,2306.3,40.9703]
[1625448246477,1.1,2307.6,2306.4,15.84475]
[1625448246577,2.20527,2307.3,2307.2,2.20527]
[1625448246677,2.20527,2307.3,2307.2,5.05577]
[1625448246978,1.1,2307.6,2307.2,5.05577]
[1625448247432,1.8739,2309.0,2307.2,5.05577]
[1625448247531,1.1,2309.2,2307.2,5.05577]
[1625448247631,13.8269,2310.3,2307.2,5.05577]
[1625448247830,0.2330319,2310.2,2307.2,2.8505]
[1625448248033,5.2330319,2310.2,2307.3,15.652689]
[1625448248236,0.23317934,2310.1,2307.3,15.652689]
[1625448248532,4.41054,2307.4,2307.3,15.652689]
[1625448250293,4.41054,2307.4,2307.2,2.8505]
[1625448250846,4.41054,2307.4,2307.3,15.837114]
[1625448251150,4.41054,2307.4,2307.0,2.20527]
[1625448251372,6.72934,2307.4,2307.0,2.20527]
[1625448251446,6.72934,2307.4,2306.6,2.20527]
[1625448251746,11.72934,2307.4,2305.2,1.0]
[1625448251853,11.72934,2307.4,2305.1,14.8032]
[1625448252053,11.72934,2307.4,2304.2,1.0]
[1625448252152,1.0,2307.3,2304.1,49.0314]
[1625448252355,1.0,2307.3,2304.2,14.1558]
[1625448252453,1.0,2307.3,2304.2,17.1431]
[1625448252607,1.0,2307.3,2305.9,2.20527]
[1625448252608,2.20527,2306.0,2305.9,2.20527]
[1625448252710,1.0,2307.7,2305.9,5.89347]
[1625448252816,5.0,2307.6,2305.9,5.89347]
[1625448252907,2.7651,2309.2,2305.9,5.89347]
[1625448253054,1.1,2308.2,2306.0,15.802724]
[1625448253255,1.1,2308.2,2305.9,21.757154]
[1625448253355,1.1,2308.2,2305.9,5.89347]
[1625448253556,1.1,2308.2,2306.0,15.760462]
[1625448253705,2.8189,2309.2,2306.0,15.760462]
[1625448253805,1.0,2309.1,2306.0,15.760462]
[1625448253904,5.0,2309.1,2306.0,15.760462]
[1625448254107,1.1,2309.0,2306.0,15.760462]
[1625448254559,2.20527,2306.4,2306.3,2.20527]
[1625448256563,4.41054,2306.4,2306.3,2.20527]
[1625448258427,1.0,2308.1,2306.3,2.20527]
[1625448258529,0.8781,2308.2,2306.3,2.20527]
[1625448258628,2.20527,2307.0,2306.7,2.20527]
[1625448260152,5.29507,2307.0,2306.7,2.20527]
[1625448260587,7.50034,2307.0,2306.7,2.20527]
[1625448264245,7.50034,2307.0,2306.6,2.20527]
[1625448264346,12.50034,2307.0,2306.6,2.20527]
[1625448264498,7.50034,2307.0,2306.6,2.20527]
[1625448264649,2.20527,2306.7,2306.6,2.20527]
[1625448264847,2.20527,2306.7,2306.1,2.20527]
[1625448264949,2.20527,2306.7,2306.1,2.14537]
[1625448265250,2.20527,2306.7,2306.1,2.07007]
[1625448266706,0.8598,2307.5,2306.1,2.07007]
[1625448266707,4.41054,2306.2,2306.1,2.07007]
[1625448268762,2.20527,2306.2,2306.1,2.07007]
[1625448270665,4.41054,2306.2,2306.1,2.07007]
[1625448272374,4.41054,2306.2,2304.3,1.0]
[1625448272470,4.41054,2306.2,2304.2,14.1558]
[1625448272571,13.12484,2306.2,2304.2,14.1558]
[1625448272672,2.20527,2305.2,2305.1,2.20527]
[1625448274282,5.29117,2305.2,2305.1,2.20527]
[1625448274683,7.49644,2305.2,2305.1,2.20527]
[1625448275401,3.0859,2305.2,2305.1,2.20527]
[1625448275521,1.0,2306.7,2305.1,2.20527]
[1625448275619,1.0,2307.6,2305.1,5.64877]
[1625448275708,15.8252,2308.2,2305.1,5.64877]
[1625448276048,1.1,2308.1,2305.2,15.809135]
[1625448276701,2.20527,2305.8,2305.7,2.20527]
[1625448278755,4.41054,2305.8,2305.7,2.20527]
[1625448279812,4.41054,2305.8,2305.1,2.20527]
[1625448280013,5.0,2305.7,2303.7,1.0]
[1625448280115,5.0,2305.7,2303.5,15.0414]
[1625448280414,6.1,2305.7,2303.5,15.0414]
[1625448280612,6.1,2305.7,2303.6,15.659156]
[1625448280712,2.20527,2304.2,2304.0,2.20527]
[1625448280813,5.03397,2304.2,2304.0,2.20527]
[1625448282616,2.20527,2304.2,2304.0,2.20527]
[1625448282717,2.20527,2304.1,2304.0,2.20527]
[1625448285120,2.20527,2304.1,2302.5,1.22317801]
[1625448285224,2.20527,2304.1,2302.5,0.22317801]
[1625448285520,5.0,2304.0,2302.5,0.22317801]
[1625448285820,5.0,2304.0,2302.6,15.63445]
[1625448286124,5.0,2304.0,2302.5,0.22317801]
[1625448286271,5.0,2304.0,2302.5,7.801e-05]
[1625448286372,6.1,2304.0,2302.5,7.801e-05]
[1625448286772,4.41054,2302.6,2302.5,7.801e-05]
[1625448288127,8.0055,2303.1,2302.5,7.801e-05]
[1625448288228,3.0055,2303.1,2302.5,7.801e-05]
[1625448288526,2.9627,2304.1,2302.5,7.801e-05]
[1625448288635,1.9627,2304.1,2302.5,7.801e-05]
[1625448288728,1.9627,2304.1,2302.6,2.20527]
[1625448288829,2.20527,2303.2,2302.6,2.20527]
[1625448289730,3.06137,2303.2,2302.6,2.20527]
[1625448289881,2.20527,2303.2,2302.6,2.20527]
[1625448289983,2.20527,2303.2,2302.7,15.870817]
[1625448290082,2.20527,2303.2,2302.7,18.986517]
[1625448290187,2.20527,2303.2,2302.7,3.1157]
[1625448290535,2.20527,2303.2,2302.8,15.811963]
[1625448291141,2.20527,2303.2,2302.6,4.41054]
[1625448291500,7.20527,2303.2,2302.6,4.41054]
[1625448291800,2.20527,2303.2,2302.6,4.41054]
[1625448293625,2.20527,2303.4,2302.6,4.41054]
[1625448293708,2.20527,2303.4,2302.7,15.644956]
[1625448294759,2.20527,2303.0,2302.7,15.644956]
[1625448295267,2.20527,2303.4,2302.7,15.644956]
[1625448296011,1.0,2303.3,2300.9,2.53575173]
[1625448296110,6.0,2303.3,2300.9,2.53575173]
[1625448296212,6.1,2303.3,2300.9,2.53575173]
[1625448296412,6.1,2303.3,2301.9,15.648448]
[1625448296510,1.0,2303.2,2301.9,15.648448]
[1625448296609,1.1,2303.1,2301.0,11.510856]
[1625448296710,1.0,2303.0,2298.9,3.5658]
[1625448296812,2.20527,2301.2,2301.1,2.20527]
[1625448296912,4.83067,2301.2,2300.9,2.20527]
[1625448297009,4.83067,2301.2,2300.9,1.89307]
[1625448297217,4.83067,2301.2,2298.9,1.26851463]
[1625448297310,4.83067,2301.2,2300.7,14.2829]
[1625448297511,1.0,2301.1,2300.7,14.2829]
[1625448297865,1.0,2301.1,2300.7,13.6314]